{"text_format":"1","workbook":"xlsx","n_sheets":6,"sheets":["表紙","自己採点シート","学習自己点検シート ","単位修得状況確認表（共通教育科目，外国人留学生）","単位修得状況確認表（専門教育科目）","累積グラフ"],"not_rendered":{"charts":10,"images":2,"macros":1,"external_links":0,"defined_names":5,"comments":0,"pivot_tables":0},"unopened":[],"bounds":{"document_bytes":16777216,"sheet_cells":100000,"rows_first":2000,"rows_last":500,"rows_between":2000,"halvings":0,"cell_chars":16384,"cell_head_chars":4096},"cells_cut":0,"cells_raw":0,"read":"whole","date_system":"1900"}

{"sheet":"表紙","index":0,"n_rows":34,"n_cols":2,"rows_kept":34,"cut":false,"hidden":false,"merged":[]}
[]
[]
[]
[]
[]
[]
[]
[]
[]
[]
[]
[null,"鹿児島大学工学部ポートフォリオ"]
[]
[]
[]
[]
[]
[]
[]
[]
[]
[]
[]
[]
[]
[]
[]
[]
[]
[]
[]
[null,"学科："]
[null,"氏名："]
[null,"学籍番号："]

{"sheet":"自己採点シート","index":1,"n_rows":22,"n_cols":21,"rows_kept":22,"cut":false,"hidden":false,"merged":[[12,2,12,5],[3,10,3,11],[3,19,3,20],[9,2,9,5],[10,2,10,5],[11,2,11,5],[19,2,19,5],[20,2,20,5],[21,2,21,5],[13,2,13,5],[14,2,14,5],[15,2,15,5],[16,2,16,5],[17,2,17,5],[18,2,18,5]]}
[]
[null,"自己採点シート"]
[]
[null,null,null,null,null,null,null,null,null,"学籍番号",null,null,null,null,null,null,null,null,"氏名"]
[]
[null,"■学生のみなさんへ"]
[null,null,"今期受講した科目に関して、以下の項目に対して自己採点をしてください。(１０点満点)"]
[]
[]
[null,null,"項目",null,null,null,"2017年度\n前期","2017年度\n後期","2018年度\n前期","2018年度\n後期","2019年度\n前期","2019年度\n後期","2018年度\n前期","2018年度\n後期","2019年度\n前期","2019年度\n後期","2020年度\n前期","2020年度\n後期","2020年度\n前期","2020年度\n後期","卒業時"]
[null,1,"工学に関しての基礎知識\n（物理・化学・数学・情報など）"]
[null,2,"各工学分野での基礎知識\n（専門科目など）"]
[null,3,"人前での発表能力"]
[null,4,"人と話し合ったり議論する能力"]
[null,5,"チームの一員として取り組める（チームワーク）能力"]
[null,6,"英語、その他外国語による表現力"]
[null,7,"読書、講習会への参加、英会話や情報処理学習など大学以外での学習による自己啓発・生涯学習能力"]
[null,8,"社会性や国際感覚が身についているか。"]
[null,9,"倫理観、責任感が身についているか。"]
[null,10]
[null,11]
[null,12]

{"sheet":"学習自己点検シート ","index":2,"n_rows":68,"n_cols":13,"rows_kept":68,"cut":false,"hidden":false,"merged":[[4,8,4,9],[4,11,4,12],[7,2,7,12]]}
[]
[null,null,null,null,null,null,null,null,null,null,null,"年度","期"]
[null,"学習自己点検シート"]
[]
[null,null,null,null,null,null,null,"学籍番号",null,null,"氏名"]
[]
[null,"■学生のみなさんへ"]
[null,null,"学生生活全般に関して自己点検をお願いしています。今期受講した科目に関して、以下の質問項目に答えてください。面談時、指導教員（アドバイザー）の先生方から回答に対する具体的なアドバイスを受けてください。"]
[]
[]
[null,"■回答項目"]
[]
[null,1,"今期の目標は達成できましたか。"]
[]
[]
[]
[]
[null,2,"講義への取り組みは積極的でしたか。また、積極的に取り組むことができなかった講義は具体的に何ですか。"]
[]
[]
[]
[]
[null,3,"講義毎に勉強方法がつかめていますか。"]
[]
[]
[]
[]
[null,4,"それぞれの講義の理解度は自分の目標に達していますか。理解度が足りないと感じている講義は何ですか。"]
[]
[]
[]
[]
[null,5,"平日（試験勉強以外）１日当たりの勉強時間（平均）はどのくらいですか。勉強時間が足りないと感じている講義は何ですか。"]
[]
[]
[]
[]
[null,6,"アルバイトと勉強は両立できましたか。"]
[]
[]
[]
[]
[null,7,"サークル活動と勉強は両立できましたか。"]
[]
[]
[]
[]
[null,8,"卒業後の進路についてどのように考えていますか。"]
[]
[]
[]
[]
[null,9,"その他、アドバイスが必要なことはありますか。"]
[]
[]
[]
[]
[null,10]
[]
[]
[]
[]
[null,11]
[]
[]
[]
[]
[null,12]

{"sheet":"単位修得状況確認表（共通教育科目，外国人留学生）","index":3,"n_rows":37,"n_cols":49,"rows_kept":37,"cut":false,"hidden":false,"merged":[[29,35,29,36],[29,37,29,38],[29,25,29,26],[29,27,29,28],[29,29,29,30],[29,31,29,32],[29,33,29,34],[29,15,29,16],[29,17,29,18],[29,19,29,20],[29,21,29,22],[29,23,29,24],[28,27,28,28],[28,0,28,6],[28,7,28,8],[28,9,28,10],[28,11,28,12],[28,13,28,14],[28,25,28,26],[28,15,28,16],[28,17,28,18],[28,19,28,20],[28,21,28,22],[28,23,28,24],[28,29,28,30],[28,31,28,32],[28,33,28,34],[28,35,28,36],[28,37,28,38],[29,0,29,6],[29,7,29,8],[29,9,29,10],[29,11,29,12],[29,13,29,14],[26,39,26,40],[27,37,27,38],[27,15,27,16],[27,17,27,18],[27,19,27,20],[27,21,27,22],[27,23,27,24],[27,25,27,26],[27,27,27,28],[27,29,27,30],[27,31,27,32],[27,33,27,34],[27,35,27,36],[21,40,22,40],[4,35,4,36],[6,0,16,0],[6,1,11,3],[9,4,10,4],[12,1,13,3],[4,25,4,26],[4,27,4,28],[4,29,4,30],[4,31,4,32],[4,33,4,34],[14,1,15,3],[4,17,4,18],[4,19,4,20],[4,21,4,22],[4,23,4,24],[27,13,27,14],[17,0,23,0],[17,1,20,3],[18,4,20,4],[21,1,22,3],[27,0,27,6],[27,7,27,8],[27,9,27,10],[24,0,24,6],[25,1,25,10],[27,11,27,12],[3,31,3,34],[3,35,3,38],[1,0,1,41],[2,0,5,6],[2,7,2,38],[2,39,5,39],[2,40,5,40],[2,41,5,41],[4,7,4,8],[4,9,4,10],[4,11,4,12],[4,13,4,14],[4,37,4,38],[4,15,4,16],[3,7,3,10],[3,11,3,14],[3,15,3,18],[3,19,3,22],[3,23,3,26],[3,27,3,30]]}
[null,null,null,null,null,null,null,null,null,null,null,null,null,null,null,null,null,null,null,null,null,null,null,null,null,null,null,null,null,null,null,null,null,null,null,null,null,null,null,null,null,null,null,null,null,null,null,null,"A"]
["単位修得状況確認表（共通教育科目：外国人留学生）",null,null,null,null,null,null,null,null,null,null,null,null,null,null,null,null,null,null,null,null,null,null,null,null,null,null,null,null,null,null,null,null,null,null,null,null,null,null,null,null,null,null,null,null,null,null,null,"B"]
["　",null,null,null,null,null,null,"取得単位数およびGP",null,null,null,null,null,null,null,null,null,null,null,null,null,null,null,null,null,null,null,null,null,null,null,null,null,null,null,null,null,null,null,"取得単位数","要修得\n単位数","累積GP",null,null,"当該期修得単位の入力要領（共通教育科目）",null,null,null,"C"]
[null,null,null,null,null,null,null,"　年次",null,null,null,"　年次",null,null,null,"　年次",null,null,null,"　年次",null,null,null,"　年次",null,null,null,"　年次",null,null,null,"　年次",null,null,null,"　年次",null,null,null,null,null,null,null,null,"１．黄色枠に各科目(英語及び日本語の場合は修得",null,null,null,"D"]
[null,null,null,null,null,null,null,"１期",null,"２期",null,"３期",null,"４期",null,"５期",null,"６期",null,"７期",null,"８期",null,"９期",null,"10期",null,"11期",null,"12期",null,"13期",null,"14期",null,"15期",null,"16期",null,null,null,null,null,null,"　　した合計単位数)の修得単位数を記入する。",null,null,null,"F"]
[null,null,null,null,null,null,null,"単位","合計GP","単位","合計GP","単位","合計GP","単位","合計GP","単位","合計GP","単位","合計GP","単位","合計GP","単位","合計GP","単位","合計GP","単位","合計GP","単位","合計GP","単位","合計GP","単位","合計GP","単位","合計GP","単位","合計GP","単位","合計GP",null,null,null,null,null,"２．オレンジ枠に修得した必修科目・選択必修",null,null,null,"P"]
["必修科目","初年次教育科目",null,null,"初年次セミナーⅠ",null,null,null,null,null,null,null,null,null,null,null,null,null,null,null,null,null,null,null,null,null,null,null,null,null,null,null,null,null,null,null,null,null,null,{"$f":"SUM(H7,J7,L7,N7,P7,R7,T7,V7,X7,Z7,AB7,AD7,AF7,AH7,AJ7,AL7)","v":0},2,null,null,null,"　　科目・全科目それぞれの合計単位数を記入"]
[null,null,null,null,"初年次セミナーⅡ",null,null,null,null,null,null,null,null,null,null,null,null,null,null,null,null,null,null,null,null,null,null,null,null,null,null,null,null,null,null,null,null,null,null,{"$f":"SUM(H8,J8,L8,N8,P8,R8,T8,V8,X8,Z8,AB8,AD8,AF8,AH8,AJ8,AL8)","v":0},"－",null,null,null,"　　する。"]
[null,null,null,null,"大学と地域",null,null,null,null,null,null,null,null,null,null,null,null,null,null,null,null,null,null,null,null,null,null,null,null,null,null,null,null,null,null,null,null,null,null,0,2,null,null,null,"３．灰色枠に受講科目の合計GP（単位数×GP）"]
[null,null,null,null,"体育・健康","理論",null,null,null,null,null,null,null,null,null,null,null,null,null,null,null,null,null,null,null,null,null,null,null,null,null,null,null,null,null,null,null,null,null,0,1,null,null,null,"　　を計算し、その値を入力する。"]
[null,null,null,null,null,"実習",null,null,null,null,null,null,null,null,null,null,null,null,null,null,null,null,null,null,null,null,null,null,null,null,null,null,null,null,null,null,null,null,null,0,1,null,null,null,"　（評価とGPの関係：A=4,B=3,C=2,D=1,F=0,Pは"]
[null,null,null,null,"情報活用",null,null,null,null,null,null,null,null,null,null,null,null,null,null,null,null,null,null,null,null,null,null,null,null,null,null,null,null,null,null,null,null,null,null,0,2,null,null,null,"　　GPの該当外なので合計GP欄は空欄とする。）"]
[null,"ｸﾞﾛｰﾊﾞﾙ教育科目",null,null,"英語",null,null,null,null,null,null,null,null,null,null,null,null,null,null,null,null,null,null,null,null,null,null,null,null,null,null,null,null,null,null,null,null,null,null,0,6,null,null,null,"４．取得単位数を要修得単位数と比較して、"]
[null,null,null,null,"異文化理解",null,null,null,null,null,null,null,null,null,null,null,null,null,null,null,null,null,null,null,null,null,null,null,null,null,null,null,null,null,null,null,null,null,null,0,2,null,null,null,"　　単位取得状況を把握する。"]
[null,"日本語・日本事情科目",null,null,"日本語",null,null,null,null,null,null,null,null,null,null,null,null,null,null,null,null,null,null,null,null,null,null,null,null,null,null,null,null,null,null,null,null,null,null,0,4]
[null,null,null,null,"日本事情",null,null,null,null,null,null,null,null,null,null,null,null,null,null,null,null,null,null,null,null,null,null,null,null,null,null,null,null,null,null,null,null,null,null,0,"(4)",null,null,null,"※期をまたがって開講される科目は、成績の出"]
[null,"必修科目　計",null,null,null,null,null,null,{"$f":"SUM(I7:I16)","v":0},null,{"$f":"SUM(K7:K16)","v":0},null,{"$f":"SUM(M7:M16)","v":0},null,{"$f":"SUM(O7:O16)","v":0},null,{"$f":"SUM(Q7:Q16)","v":0},null,{"$f":"SUM(S7:S16)","v":0},null,{"$f":"SUM(U7:U16)","v":0},null,{"$f":"SUM(W7:W16)","v":0},null,{"$f":"SUM(Y7:Y16)","v":0},null,{"$f":"SUM(AA7:AA16)","v":0},null,{"$f":"SUM(AC7:AC16)","v":0},null,{"$f":"SUM(AE7:AE16)","v":0},null,{"$f":"SUM(AG7:AG16)","v":0},null,{"$f":"SUM(AI7:AI16)","v":0},null,{"$f":"SUM(AK7:AK16)","v":0},null,{"$f":"SUM(AM7:AM16)","v":0},0,20,{"$f":"SUM(I17,K17,M17,O17,Q17,S17,U17,W17,Y17,AA17,AC17,AE17,AG17,AI17,AK17,AM17)","v":0},null,null,"　された期に記入する。例えば通年の場合、後"]
["選択必修科目","教養教育科目",null,null,"人文・社会科学分野","選択科目",null,null,null,null,null,null,null,null,null,null,null,null,null,null,null,null,null,null,null,null,null,null,null,null,null,null,null,null,null,null,null,null,null,0,4,null,null,null,"　期に記入する。"]
[null,null,null,null,"自然科学分野","実験科目",null,null,null,null,null,null,null,null,null,null,null,null,null,null,null,null,null,null,null,null,null,null,null,null,null,null,null,null,null,null,null,null,null,0,2,null,null,null,"※本表最下部の表の入力方法について"]
[null,null,null,null,null,"選択科目",null,null,null,null,null,null,null,null,null,null,null,null,null,null,null,null,null,null,null,null,null,null,null,null,null,null,null,null,null,null,null,null,null,0,2,null,null,null,"　・P評価の単位数は、当該期①の欄に、"]
[null,null,null,null,null,"基礎教育入門科目",null,null,null,null,null,null,null,null,null,null,null,null,null,null,null,null,null,null,null,null,null,null,null,null,null,null,null,null,null,null,null,null,null,0,2,null,null,null,"　・F評価の単位数は、当該期②の欄に、"]
[null,"教養活用科目",null,null,"統合Ⅰ（課題発見）",null,null,null,null,null,null,null,null,null,null,null,null,null,null,null,null,null,null,null,null,null,null,null,null,null,null,null,null,null,null,null,null,null,null,0,4,null,null,null,"　・評価F科目の再履修での修得単位数は当該"]
[null,null,null,null,"統合Ⅱ（課題解決）",null,null,null,null,null,null,null,null,null,null,null,null,null,null,null,null,null,null,null,null,null,null,null,null,null,null,null,null,null,null,null,null,null,null,0,null,null,null,null,"　　期③の欄に入力する。なお、②には再履修"]
[null,"選択必修科目　計",null,null,null,null,null,null,{"$f":"SUM(I18:I23)","v":0},null,{"$f":"SUM(K18:K23)","v":0},null,{"$f":"SUM(M18:M23)","v":0},null,{"$f":"SUM(O18:O23)","v":0},null,{"$f":"SUM(Q18:Q23)","v":0},null,{"$f":"SUM(S18:S23)","v":0},null,{"$f":"SUM(U18:U23)","v":0},null,{"$f":"SUM(W18:W23)","v":0},null,{"$f":"SUM(Y18:Y23)","v":0},null,{"$f":"SUM(AA18:AA23)","v":0},null,{"$f":"SUM(AC18:AC23)","v":0},null,{"$f":"SUM(AE18:AE23)","v":0},null,{"$f":"SUM(AG18:AG23)","v":0},null,{"$f":"SUM(AI18:AI23)","v":0},null,{"$f":"SUM(AK18:AK23)","v":0},null,{"$f":"SUM(AM18:AM23)","v":0},0,14,{"$f":"SUM(I24,K24,M24,O24,Q24,S24,U24,W24,Y24,AA24,AC24,AE24,AG24,AI24,AK24,AM24)","v":0},null,null,"　　の科目は含まない。"]
["全科目合計",null,null,null,null,null,null,{"$f":"H17+H24","v":0},{"$f":"I17+I24","v":0},{"$f":"J17+J24","v":0},0,0,0,0,0,0,0,0,0,0,0,0,0,0,0,0,0,0,0,0,0,0,0,0,0,0,0,0,0,0,34,{"$f":"SUM(I25,K25,M25,O25,Q25,S25,U25,W25,Y25,AA25,AC25,AE25,AG25,AI25,AK25,AM25)","v":0},null,null,"※評価Fの科目を再履修して単位を修得した場合"]
["※","「期を増やす」欄により学年を４年間増やすことが可。",null,null,null,null,null,null,null,null,null,null,null,null,null,null,null,null,null,null,null,null,null,null,null,null,null,null,null,null,null,null,null,null,null,null,null,null,null,null,null,null,null,null,"　の入力方法について"]
[null,null,null,null,null,null,null,null,null,null,null,null,null,null,null,null,null,null,null,null,null,null,null,null,null,null,null,null,null,null,null,null,null,null,null,null,null,null,null,null,null,null,null,null,"　上記1～3の手順で入力する。"]
["①【共通教育科目】評価Pの単位数",null,null,null,null,null,null,null,null,null,null,null,null,null,null,null,null,null,null,null,null,null,null,null,null,null,null,null,null,null,null,null,null,null,null,null,null,null,null,{"$f":"SUM(H28:AM28)","v":0},null,null,null,null,"※評価D以上の科目を再履修して単位を修得した"]
["②【共通教育科目】不合格（評価F）の単位数",null,null,null,null,null,null,null,null,null,null,null,null,null,null,null,null,null,null,null,null,null,null,null,null,null,null,null,null,null,null,null,null,null,null,null,null,null,null,{"$f":"SUM(H29:AM29)","v":0},null,null,null,null,"　場合の入力方法について"]
["③【共通教育科目】評価F科目の再履修での修得単位数",null,null,null,null,null,null,null,null,null,null,null,null,null,null,null,null,null,null,null,null,null,null,null,null,null,null,null,null,null,null,null,null,null,null,null,null,null,null,{"$f":"SUM(H30:AM30)","v":0},null,null,null,null,"　上記1～3の手順で入力した後、以前の評価（"]
[null,null,null,null,null,null,null,null,null,null,null,null,null,null,null,null,null,null,null,null,null,null,null,null,null,null,null,null,null,null,null,null,null,null,null,null,null,null,null,null,null,null,null,null,"  黄色枠）と合計GP（灰色枠）を削除し、オレ"]
[null,null,null,null,null,null,null,null,null,null,null,null,null,null,null,null,null,null,null,null,null,null,null,null,null,null,null,null,null,null,null,null,null,null,null,null,null,null,null,null,null,null,null,null,"　ンジ枠の合計修得単位数から再履修で修得し"]
[null,null,null,null,null,null,null,null,null,null,null,null,null,null,null,null,null,null,null,null,null,null,null,null,null,null,null,null,null,null,null,null,null,null,null,null,null,null,null,null,null,null,null,null,"　た単位数を引いた値を再入力する。"]
[]
[null,null,null,null,null,null,null,null,null,null,null,null,null,null,null,null,null,null,null,null,null,null,null,null,null,null,null,null,null,null,null,null,null,null,null,null,null,null,null,null,null,null,null,null,"（補足説明）"]
[null,null,null,null,null,null,null,null,null,null,null,null,null,null,null,null,null,null,null,null,null,null,null,null,null,null,null,null,null,null,null,null,null,null,null,null,null,null,null,null,null,null,null,null,"※留年した場合は「期を増やす」欄で列を増"]
[null,null,null,null,null,null,null,null,null,null,null,null,null,null,null,null,null,null,null,null,null,null,null,null,null,null,null,null,null,null,null,null,null,null,null,null,null,null,null,null,null,null,null,null,"　やす。"]

{"sheet":"単位修得状況確認表（専門教育科目）","index":4,"n_rows":79,"n_cols":49,"rows_kept":79,"cut":false,"hidden":false,"merged":[[78,29,78,30],[78,31,78,32],[78,33,78,34],[78,35,78,36],[76,31,76,32],[74,37,74,38],[73,42,75,42],[78,0,78,4],[78,5,78,6],[78,7,78,8],[78,9,78,10],[78,11,78,12],[78,13,78,14],[78,15,78,16],[78,17,78,18],[78,19,78,20],[77,19,77,20],[77,0,77,4],[77,5,77,6],[77,7,77,8],[77,9,77,10],[77,11,77,12],[77,13,77,14],[77,15,77,16],[77,17,77,18],[76,19,76,20],[78,21,78,22],[78,23,78,24],[78,25,78,26],[78,27,78,28],[1,0,1,39],[2,37,5,37],[3,5,3,8],[3,9,3,12],[2,39,5,39],[3,17,3,20],[4,23,4,24],[4,29,4,30],[4,31,4,32],[4,17,4,18],[2,38,5,38],[4,19,4,20],[3,21,3,24],[4,33,4,34],[2,2,5,2],[4,13,4,14],[32,0,32,4],[34,0,36,0],[39,44,46,44],[49,44,58,44],[61,44,69,44],[6,44,31,44],[34,44,36,44],[39,0,46,0],[39,1,46,1],[2,0,5,1],[6,0,13,0],[6,1,13,1],[14,0,14,4],[16,1,31,1],[4,5,4,6],[2,5,2,36],[4,35,4,36],[3,25,3,28],[4,25,4,26],[4,27,4,28],[3,29,3,32],[3,33,3,36],[4,21,4,22],[16,0,31,0],[3,13,3,16],[4,7,4,8],[4,9,4,10],[4,11,4,12],[72,0,72,4],[73,0,73,4],[76,5,76,6],[76,7,76,8],[76,9,76,10],[76,11,76,12],[49,0,58,0],[49,1,58,1],[37,0,37,4],[76,0,76,4],[47,0,47,4],[34,1,36,1],[4,15,4,16],[51,48,52,48],[76,33,76,34],[76,35,76,36],[74,1,74,10],[59,0,59,4],[77,21,77,22],[77,23,77,24],[77,25,77,26],[77,27,77,28],[77,29,77,30],[77,31,77,32],[77,33,77,34],[77,35,77,36],[76,21,76,22],[76,23,76,24],[76,25,76,26],[76,27,76,28],[76,29,76,30],[70,0,70,4],[61,0,69,0],[61,1,69,1],[76,17,76,18],[76,13,76,14],[76,15,76,16]]}
[null,null,null,null,null,null,null,null,null,null,null,null,null,null,null,null,null,null,null,null,null,null,null,null,null,null,null,null,null,null,null,null,null,null,null,null,null,null,null,null,null,null,null,null,null,"A"]
["単位修得状況確認表（専門教育科目）",null,null,null,null,null,null,null,null,null,null,null,null,null,null,null,null,null,null,null,null,null,null,null,null,null,null,null,null,null,null,null,null,null,null,null,null,null,null,null,null,null,"受講科目の単位入力要領（専門教育科目）",null,null,"B"]
["区分",null,"必修科目","授","単","履修科目の評価およびGP",null,null,null,null,null,null,null,null,null,null,null,null,null,null,null,null,null,null,null,null,null,null,null,null,null,null,null,null,null,null,null,"取得単位数","要修得\n単位数","累積GP",null,null,"STEP１",null,null,"C"]
[null,null,null,"業"," ","　年次",null,null,null,"　年次",null,null,null,"　年次",null,null,null,"　年次",null,null,null,"　年次",null,null,null,"　年次",null,null,null,"　年次",null,null,null,"　年次",null,null,null,null,null,null,null,null,"当該期に受講した科目の単位を区分ごとに以下の手順で",null,null,"D"]
[null,null,null,"科",null,"１期",null,"２期",null,"３期",null,"４期",null,"５期",null,"６期",null,"７期",null,"８期",null,"９期",null,"10期",null,"11期",null,"12期",null,"13期",null,"14期",null,"15期",null,"16期",null,null,null,null,null,null,"入力し、要修得単位数と比較して単位取得状況を把握",null,null,"F"]
[null,null,null,"目","位","評価","合計GP","評価","合計GP","評価","合計GP","評価","合計GP","評価","合計GP","評価","合計GP","評価","合計GP","評価","合計GP","評価","合計GP","評価","合計GP","評価","合計GP","評価","合計GP","評価","合計GP","評価","合計GP","評価","合計GP","評価","合計GP",null,null,null,null,null,"する。",null,null,"P"]
["基礎教育科目","必修科目","○","微分積分学ＡＩ",2,null,null,null,null,null,null,null,null,null,null,null,null,null,null,null,null,null,null,null,null,null,null,null,null,null,null,null,null,null,null,null,null,null,null,null,null,null,null,null,"工学基礎",250152511101,{"$f":"D7","v":"微分積分学ＡＩ"}]
[null,null,"○","微分積分学ＡＩ（特別クラス）","(2)",null,null,null,null,null,null,null,null,null,null,null,null,null,null,null,null,null,null,null,null,null,null,null,null,null,null,null,null,null,null,null,null,null,null,null,null,null,"１．黄色枠に受講科目の評価（A,B,C,D,F,P）を入力する。",null,null,250222000101,"微分積分学ＡＩ（特別クラス）"]
[null,null,"○","微分積分学ＡＩＩ",2,null,null,null,null,null,null,null,null,null,null,null,null,null,null,null,null,null,null,null,null,null,null,null,null,null,null,null,null,null,null,null,null,null,null,null,null,null,"２．オレンジ枠に合計修得単位数を入力する。",null,null,250092800004,"微分積分学ＡＩＩ"]
[null,null,"○","線形代数学Ｉ",2,null,null,null,null,null,null,null,null,null,null,null,null,null,null,null,null,null,null,null,null,null,null,null,null,null,null,null,null,null,null,null,null,null,null,null,null,null,"３．灰色枠に受講科目の合計GP（単位数×GP）を計算し、",null,null,251328000008,"線形代数学Ｉ"]
[null,null,"○","線形代数学ＩＩ",2,null,null,null,null,null,null,null,null,null,null,null,null,null,null,null,null,null,null,null,null,null,null,null,null,null,null,null,null,null,null,null,null,null,null,null,null,null,"    その値を入力する。",null,null,250092800006,"線形代数学ＩＩ"]
[null,null,"○","物理学基礎ＡＩ",2,null,null,null,null,null,null,null,null,null,null,null,null,null,null,null,null,null,null,null,null,null,null,null,null,null,null,null,null,null,null,null,null,null,null,null,null,null,"　（評価とGPの関係：A=4,B=3,C=2,D=1,F=0,PはGPの該当",null,null,250092800005,"物理学基礎ＡＩ"]
[null,null,"○","物理学基礎ＡＩ（特別クラス）","(2)",null,null,null,null,null,null,null,null,null,null,null,null,null,null,null,null,null,null,null,null,null,null,null,null,null,null,null,null,null,null,null,null,null,null,null,null,null,"　　外なので合計GP欄は空欄とする。）",null,null,250042099101,"物理学基礎ＡＩ（特別クラス）"]
[null,null,"○","物理学基礎ＡＩＩ",2,null,null,null,null,null,null,null,null,null,null,null,null,null,null,null,null,null,null,null,null,null,null,null,null,null,null,null,null,null,null,null,null,null,null,null,null,null,"４．修得単位数を要修得単位数と比較して単位取得状況",null,null,250299110001,"物理学基礎ＡＩＩ"]
["合計",null,null,null,null,null,{"$f":"SUM(G7:G14)","v":0},null,{"$f":"SUM(I7:I14)","v":0},null,{"$f":"SUM(K7:K14)","v":0},null,{"$f":"SUM(M7:M14)","v":0},null,{"$f":"SUM(O7:O14)","v":0},null,{"$f":"SUM(Q7:Q14)","v":0},null,{"$f":"SUM(S7:S14)","v":0},null,{"$f":"SUM(U7:U14)","v":0},null,{"$f":"SUM(W7:W14)","v":0},null,{"$f":"SUM(Y7:Y14)","v":0},null,{"$f":"SUM(AA7:AA14)","v":0},null,{"$f":"SUM(AC7:AC14)","v":0},null,{"$f":"SUM(AE7:AE14)","v":0},null,{"$f":"SUM(AG7:AG14)","v":0},null,{"$f":"SUM(AI7:AI14)","v":0},null,{"$f":"SUM(AK7:AK14)","v":0},{"$f":"SUM(F15,H15,J15,L15,N15,P15,R15,T15,V15,X15,Z15,AB15,AD15,AF15,AH15,AJ15)","v":0},12,{"$f":"SUM(G15,I15,K15,M15,O15,Q15,S15,U15,W15,Y15,AA15,AC15,AE15,AG15,AI15,AK15)","v":0},null,null,"    を把握する。",null,null,250299200001,0]
[]
["専門科目","工学基礎","○","フレッシュマンセミナー",2,null,null,null,null,null,null,null,null,null,null,null,null,null,null,null,null,null,null,null,null,null,null,null,null,null,null,null,null,null,null,null,null,null,null,null,null,null,"※期をまたがって開講される科目は、成績の出された期に",null,null,250228100002,"フレッシュマンセミナー"]
[null,null,"○","工学倫理",2,null,null,null,null,null,null,null,null,null,null,null,null,null,null,null,null,null,null,null,null,null,null,null,null,null,null,null,null,null,null,null,null,null,null,null,null,null,"  記入する。例えば通年の場合、後期に記入する。",null,null,250228100006,"工学倫理"]
[null,null,"○","応用数学Ⅰ",2,null,null,null,null,null,null,null,null,null,null,null,null,null,null,null,null,null,null,null,null,null,null,null,null,null,null,null,null,null,null,null,null,null,null,null,null,null,"※本表最下部の表の入力方法について",null,null,250228100004,"応用数学Ⅰ"]
[null,null,"○","化学工学プログラミング",2,null,null,null,null,null,null,null,null,null,null,null,null,null,null,null,null,null,null,null,null,null,null,null,null,null,null,null,null,null,null,null,null,null,null,null,null,null,"　・P評価の単位数は当該期①の欄に、",null,null,250228100005,"化学工学プログラミング"]
[null,null,null,"情報システム",2,null,null,null,null,null,null,null,null,null,null,null,null,null,null,null,null,null,null,null,null,null,null,null,null,null,null,null,null,null,null,null,null,null,null,null,null,null,"　・F評価の単位数は当該期②の欄に、"]
[null,null,null,"応用数学Ⅱ",2,null,null,null,null,null,null,null,null,null,null,null,null,null,null,null,null,null,null,null,null,null,null,null,null,null,null,null,null,null,null,null,null,null,null,null,null,null,"　・評価F科目の再履修での修得単位数は当該期③の欄に"]
[null,null,null,"化学基礎",2,null,null,null,null,null,null,null,null,null,null,null,null,null,null,null,null,null,null,null,null,null,null,null,null,null,null,null,null,null,null,null,null,null,null,null,null,null,"　　入力する。なお、②には再履修の科目は含まない。"]
[null,null,null,"化学プロセス英語",2,null,null,null,null,null,null,null,null,null,null,null,null,null,null,null,null,null,null,null,null,null,null,null,null,null,null,null,null,null,null,null,null,null,null,null,null,null,"※評価Fの科目を再履修して単位を修得した場合の入力方"]
[null,null,null,"原子力・放射線と環境",2,null,null,null,null,null,null,null,null,null,null,null,null,null,null,null,null,null,null,null,null,null,null,null,null,null,null,null,null,null,null,null,null,null,null,null,null,null,"  法について"]
[null,null,null,"地球科学基礎",2,null,null,null,null,null,null,null,null,null,null,null,null,null,null,null,null,null,null,null,null,null,null,null,null,null,null,null,null,null,null,null,null,null,null,null,null,null,"  上記１～３の手順で入力する。"]
[null,null,null,"生産工学論",2,null,null,null,null,null,null,null,null,null,null,null,null,null,null,null,null,null,null,null,null,null,null,null,null,null,null,null,null,null,null,null,null,null,null,null,null,null,"※評価D以上の科目を再履修して単位を修得した場合の入"]
[null,null,null,"エレクトロニクス論",2,null,null,null,null,null,null,null,null,null,null,null,null,null,null,null,null,null,null,null,null,null,null,null,null,null,null,null,null,null,null,null,null,null,null,null,null,null,"  力方法について"]
[null,null,null,"科学技術論",2,null,null,null,null,null,null,null,null,null,null,null,null,null,null,null,null,null,null,null,null,null,null,null,null,null,null,null,null,null,null,null,null,null,null,null,null,null,"  上記1～3の手順で入力した後、以前の評価（黄色枠）と"]
[null,null,null,"環境工学論",2,null,null,null,null,null,null,null,null,null,null,null,null,null,null,null,null,null,null,null,null,null,null,null,null,null,null,null,null,null,null,null,null,null,null,null,null,null,"  合計GP（灰色枠）を削除し、オレンジ枠の合計修得単位"]
[null,null,null,"材料科学論",2,null,null,null,null,null,null,null,null,null,null,null,null,null,null,null,null,null,null,null,null,null,null,null,null,null,null,null,null,null,null,null,null,null,null,null,null,null,"  数から再履修で修得した単位数を引いた値を再入力する。"]
[null,null,null,"エネルギー工学論",2,null,null,null,null,null,null,null,null,null,null,null,null,null,null,null,null,null,null,null,null,null,null,null,null,null,null,null,null,null,null,null,null,null,null,null,null,null,"　",null,null,250228100003,{"$f":"D32","v":"エネルギー工学論"}]
["合計",null,null,null,null,null,{"$f":"SUM(G17:G32)","v":0},null,{"$f":"SUM(I17:I32)","v":0},null,{"$f":"SUM(K17:K32)","v":0},null,{"$f":"SUM(M17:M32)","v":0},null,{"$f":"SUM(O17:O32)","v":0},null,{"$f":"SUM(Q17:Q32)","v":0},null,{"$f":"SUM(S17:S32)","v":0},null,{"$f":"SUM(U17:U32)","v":0},null,{"$f":"SUM(W17:W32)","v":0},null,{"$f":"SUM(Y17:Y32)","v":0},null,{"$f":"SUM(AA17:AA32)","v":0},null,{"$f":"SUM(AC17:AC32)","v":0},null,{"$f":"SUM(AE17:AE32)","v":0},null,{"$f":"SUM(AG17:AG32)","v":0},null,{"$f":"SUM(AI17:AI32)","v":0},null,{"$f":"SUM(AK17:AK32)","v":0},{"$f":"SUM(F33,H33,J33,L33,N33,P33,R33,T33,V33,X33,Z33,AB33,AD33,AF33,AH33,AJ33)","v":0},18,{"$f":"SUM(G33,I33,K33,M33,O33,Q33,S33,U33,W33,Y33,AA33,AC33,AE33,AG33,AI33,AK33)","v":0},null,null,"STEP２"]
[null,null,null,null,null,null,null,null,null,null,null,null,null,null,null,null,null,null,null,null,null,null,null,null,null,null,null,null,null,null,null,null,null,null,null,null,null,null,null,null,null,null,"累積GPAの値を成績原簿と一致するかチェックする。"]
["専門科目","化\n学\n工\n学\n基\n礎","○","化学工学量論",2,null,null,null,null,null,null,null,null,null,null,null,null,null,null,null,null,null,null,null,null,null,null,null,null,null,null,null,null,null,null,null,null,null,null,null,null,null,"区分ごとの単位修得状況の入力が終了した後に、シート",null,"化\n学\n工\n学\n基\n礎",251328000009,{"$f":"D35","v":"化学工学量論"}]
[null,null,"○","化工熱力学",2,null,null,null,null,null,null,null,null,null,null,null,null,null,null,null,null,null,null,null,null,null,null,null,null,null,null,null,null,null,null,null,null,null,null,null,null,null,"右下赤枠の「累積GPA」の値が、成績原簿に記載されて",null,null,251328000010,{"$f":"D36","v":"化工熱力学"}]
[null,null,"○","移動現象基礎",2,null,null,null,null,null,null,null,null,null,null,null,null,null,null,null,null,null,null,null,null,null,null,null,null,null,null,null,null,null,null,null,null,null,null,null,null,null,"いる累積GPAの値と一致しているかチェックし、一致",null,null,250092800011,{"$f":"D37","v":"移動現象基礎"}]
["合計",null,null,null,null,null,{"$f":"SUM(G35:G37)","v":0},null,{"$f":"SUM(I35:I37)","v":0},null,{"$f":"SUM(K35:K37)","v":0},null,{"$f":"SUM(M35:M37)","v":0},null,{"$f":"SUM(O35:O37)","v":0},null,{"$f":"SUM(Q35:Q37)","v":0},null,{"$f":"SUM(S35:S37)","v":0},null,{"$f":"SUM(U35:U37)","v":0},null,{"$f":"SUM(W35:W37)","v":0},null,{"$f":"SUM(Y35:Y37)","v":0},null,{"$f":"SUM(AA35:AA37)","v":0},null,{"$f":"SUM(AC35:AC37)","v":0},null,{"$f":"SUM(AE35:AE37)","v":0},null,{"$f":"SUM(AG35:AG37)","v":0},null,{"$f":"SUM(AI35:AI37)","v":0},null,{"$f":"SUM(AK35:AK37)","v":0},{"$f":"SUM(F38,H38,J38,L38,N38,P38,R38,T38,V38,X38,Z38,AB38,AD38,AF38,AH38,AJ38)","v":0},6,{"$f":"SUM(G38,I38,K38,M38,O38,Q38,S38,U38,W38,Y38,AA38,AC38,AE38,AG38,AI38,AK38)","v":0},null,null,"していない場合はSTEP１に戻り、入力値に間違いが"]
[null,null,null,null,null,null,null,null,null,null,null,null,null,null,null,null,null,null,null,null,null,null,null,null,null,null,null,null,null,null,null,null,null,null,null,null,null,null,null,null,null,null,"ないか見直し、正しく入力する。"]
["専門科目","専門基礎A","○","物理化学基礎",2,null,null,null,null,null,null,null,null,null,null,null,null,null,null,null,null,null,null,null,null,null,null,null,null,null,null,null,null,null,null,null,null,null,null,null,null,null,null,null,"専門基礎A",250092800001,{"$f":"D40","v":"物理化学基礎"}]
[null,null,"○","有機化学基礎",2,null,null,null,null,null,null,null,null,null,null,null,null,null,null,null,null,null,null,null,null,null,null,null,null,null,null,null,null,null,null,null,null,null,null,null,null,null,"（補足説明）",null,null,250092800002,"有機化学基礎"]
[null,null,"○","無機化学基礎",2,null,null,null,null,null,null,null,null,null,null,null,null,null,null,null,null,null,null,null,null,null,null,null,null,null,null,null,null,null,null,null,null,null,null,null,null,null,"※留年した場合は「期を増やす」欄で列を増やす。",null,null,250092800003,"無機化学基礎"]
[null,null,null,"量子化学",2,null,null,null,null,null,null,null,null,null,null,null,null,null,null,null,null,null,null,null,null,null,null,null,null,null,null,null,null,null,null,null,null,null,null,null,null,null,"※評価Pの科目については、GPおよびGPAの計算に含ま",null,null,251328000007,"量子化学"]
[null,null,null,"有機化学",2,null,null,null,null,null,null,null,null,null,null,null,null,null,null,null,null,null,null,null,null,null,null,null,null,null,null,null,null,null,null,null,null,null,null,null,null,null,"　ない。しかしながら、進級・卒業要件の累積単位数",null,null,251328000011,"有機化学"]
[null,null,"○","無機化学",2,null,null,null,null,null,null,null,null,null,null,null,null,null,null,null,null,null,null,null,null,null,null,null,null,null,null,null,null,null,null,null,null,null,null,null,null,null,"　には含まれることがあるので、標準履修課程表で確認",null,null,250092800018,"無機化学"]
[null,null,null,"分析化学",2,null,null,null,null,null,null,null,null,null,null,null,null,null,null,null,null,null,null,null,null,null,null,null,null,null,null,null,null,null,null,null,null,null,null,null,null,null,"　すること。（インターンシップ等）",null,null,250092800014,"分析化学"]
[null,null,"○","機器分析基礎",2,null,null,null,null,null,null,null,null,null,null,null,null,null,null,null,null,null,null,null,null,null,null,null,null,null,null,null,null,null,null,null,null,null,null,null,null,null,"※随意科目については、GPおよびGPAの計算に含まれない。",null,null,251328000012,"機器分析基礎"]
["合計",null,null,null,null,null,{"$f":"SUM(G40:G47)","v":0},null,{"$f":"SUM(I40:I47)","v":0},null,{"$f":"SUM(K40:K47)","v":0},null,{"$f":"SUM(M40:M47)","v":0},null,{"$f":"SUM(O40:O47)","v":0},null,{"$f":"SUM(Q40:Q47)","v":0},null,{"$f":"SUM(S40:S47)","v":0},null,{"$f":"SUM(U40:U47)","v":0},null,{"$f":"SUM(W40:W47)","v":0},null,{"$f":"SUM(Y40:Y47)","v":0},null,{"$f":"SUM(AA40:AA47)","v":0},null,{"$f":"SUM(AC40:AC47)","v":0},null,{"$f":"SUM(AE40:AE47)","v":0},null,{"$f":"SUM(AG40:AG47)","v":0},null,{"$f":"SUM(AI40:AI47)","v":0},null,{"$f":"SUM(AK40:AK47)","v":0},{"$f":"SUM(F48,H48,J48,L48,N48,P48,R48,T48,V48,X48,Z48,AB48,AD48,AF48,AH48,AJ48)","v":0},12,{"$f":"SUM(G48,I48,K48,M48,O48,Q48,S48,U48,W48,Y48,AA48,AC48,AE48,AG48,AI48,AK48)","v":0},null,null,"　また、進級・卒業要件にも含まれない。"]
[]
["専門科目","専門基礎B","○","反応速度論",2,null,null,null,null,null,null,null,null,null,null,null,null,null,null,null,null,null,null,null,null,null,null,null,null,null,null,null,null,null,null,null,null,null,null,null,null,null,null,null,"専門基礎B",250224011001,{"$f":"D50","v":"反応速度論"}]
[null,null,"○","化学工学実習",4,null,null,null,null,null,null,null,null,null,null,null,null,null,null,null,null,null,null,null,null,null,null,null,null,null,null,null,null,null,null,null,null,null,null,null,null,null,null,null,null,251328000013,"化学工学実習"]
[null,null,"○","化学工学実験",4,null,null,null,null,null,null,null,null,null,null,null,null,null,null,null,null,null,null,null,null,null,null,null,null,null,null,null,null,null,null,null,null,null,null,null,null,null,null,null,null,250642400100,"化学工学実験","2件以上ヒット","化学工学実験 250642400100\n化学工学実験（環） 251328000014"]
[null,null,"○","化学プロセス工学",2,null,null,null,null,null,null,null,null,null,null,null,null,null,null,null,null,null,null,null,null,null,null,null,null,null,null,null,null,null,null,null,null,null,null,null,null,null,null,null,null,250224000140,"化学プロセス工学"]
[null,null,"○","分離工学",2,null,null,null,null,null,null,null,null,null,null,null,null,null,null,null,null,null,null,null,null,null,null,null,null,null,null,null,null,null,null,null,null,null,null,null,null,null,null,null,null,259432411111,"分離工学"]
[null,null,"○","反応工学",2,null,null,null,null,null,null,null,null,null,null,null,null,null,null,null,null,null,null,null,null,null,null,null,null,null,null,null,null,null,null,null,null,null,null,null,null,null,null,null,null,250092800021,"反応工学"]
[null,null,"○","無機材料化学Ⅰ",2,null,null,null,null,null,null,null,null,null,null,null,null,null,null,null,null,null,null,null,null,null,null,null,null,null,null,null,null,null,null,null,null,null,null,null,null,null,null,null,null,259652413114,"無機材料化学Ⅰ"]
[null,null,"○","技術英語Ⅰ",2,null,null,null,null,null,null,null,null,null,null,null,null,null,null,null,null,null,null,null,null,null,null,null,null,null,null,null,null,null,null,null,null,null,null,null,null,null,null,null,null,251328000015,"技術英語Ⅰ","ヒットせず"]
[null,null,"○","技術英語Ⅱ",2,null,null,null,null,null,null,null,null,null,null,null,null,null,null,null,null,null,null,null,null,null,null,null,null,null,null,null,null,null,null,null,null,null,null,null,null,null,null,null,null,251328000016,"技術英語Ⅱ","ヒットせず"]
[null,null,"○","粉体工学",2,null,null,null,null,null,null,null,null,null,null,null,null,null,null,null,null,null,null,null,null,null,null,null,null,null,null,null,null,null,null,null,null,null,null,null,null,null,null,null,null,251328000023,"粉体工学","ヒットせず"]
["合計",null,null,null,null,null,{"$f":"SUM(G50:G59)","v":0},null,{"$f":"SUM(I50:I59)","v":0},null,{"$f":"SUM(K50:K59)","v":0},null,{"$f":"SUM(M50:M59)","v":0},null,{"$f":"SUM(O50:O59)","v":0},null,{"$f":"SUM(Q50:Q59)","v":0},null,{"$f":"SUM(S50:S59)","v":0},null,{"$f":"SUM(U50:U59)","v":0},null,{"$f":"SUM(W50:W59)","v":0},null,{"$f":"SUM(Y50:Y59)","v":0},null,{"$f":"SUM(AA50:AA59)","v":0},null,{"$f":"SUM(AC50:AC59)","v":0},null,{"$f":"SUM(AE50:AE59)","v":0},null,{"$f":"SUM(AG50:AG59)","v":0},null,{"$f":"SUM(AI50:AI59)","v":0},null,{"$f":"SUM(AK50:AK59)","v":0},{"$f":"SUM(F60,H60,J60,L60,N60,P60,R60,T60,V60,X60,Z60,AB60,AD60,AF60,AH60,AJ60)","v":0},24,{"$f":"SUM(G60,I60,K60,M60,O60,Q60,S60,U60,W60,Y60,AA60,AC60,AE60,AG60,AI60,AK60)","v":0}]
[]
["専門科目","専門","○","学外実習",1,null,null,null,null,null,null,null,null,null,null,null,null,null,null,null,null,null,null,null,null,null,null,null,null,null,null,null,null,null,null,null,null,null,null,null,null,null,null,null,"専門",250092800025,{"$f":"D62","v":"学外実習"}]
[null,null,"○","化学工学セミナー",2,null,null,null,null,null,null,null,null,null,null,null,null,null,null,null,null,null,null,null,null,null,null,null,null,null,null,null,null,null,null,null,null,null,null,null,null,null,null,null,null,250424000105,"化学工学セミナー"]
[null,null,"○","環化工演習",1,null,null,null,null,null,null,null,null,null,null,null,null,null,null,null,null,null,null,null,null,null,null,null,null,null,null,null,null,null,null,null,null,null,null,null,null,null,null,null,null,251328000017,"環化工演習"]
[null,null,"○","化学工学総論",2,null,null,null,null,null,null,null,null,null,null,null,null,null,null,null,null,null,null,null,null,null,null,null,null,null,null,null,null,null,null,null,null,null,null,null,null,null,null,null,null,251328000018,"化学工学総論"]
[null,null,"○","環境化学工学",2,null,null,null,null,null,null,null,null,null,null,null,null,null,null,null,null,null,null,null,null,null,null,null,null,null,null,null,null,null,null,null,null,null,null,null,null,null,null,null,null,259752414105,"環境化学工学"]
[null,null,"○","無機材料化学Ⅱ",2,null,null,null,null,null,null,null,null,null,null,null,null,null,null,null,null,null,null,null,null,null,null,null,null,null,null,null,null,null,null,null,null,null,null,null,null,null,null,null,null,259652424115,"無機材料化学Ⅱ"]
[null,null,"○","化学工学特別研究Ⅰ",2,null,null,null,null,null,null,null,null,null,null,null,null,null,null,null,null,null,null,null,null,null,null,null,null,null,null,null,null,null,null,null,null,null,null,null,null,null,null,null,null,251328000019,"化学工学特別研究Ⅰ","ヒットせず"]
[null,null,"○","化学工学特別研究Ⅱ",2,null,null,null,null,null,null,null,null,null,null,null,null,null,null,null,null,null,null,null,null,null,null,null,null,null,null,null,null,null,null,null,null,null,null,null,null,null,null,null,null,251328000020,"化学工学特別研究Ⅱ","ヒットせず"]
[null,null,"○","卒業論文",6,null,null,null,null,null,null,null,null,null,null,null,null,null,null,null,null,null,null,null,null,null,null,null,null,null,null,null,null,null,null,null,null,null,null,null,null,null,null,null,null,250092800032,"卒業論文"]
["合計",null,null,null,null,null,{"$f":"SUM(G62:G70)","v":0},null,{"$f":"SUM(I62:I70)","v":0},null,{"$f":"SUM(K62:K70)","v":0},null,{"$f":"SUM(M62:M70)","v":0},null,{"$f":"SUM(O62:O70)","v":0},null,{"$f":"SUM(Q62:Q70)","v":0},null,{"$f":"SUM(S62:S70)","v":0},null,{"$f":"SUM(U62:U70)","v":0},null,{"$f":"SUM(W62:W70)","v":0},null,{"$f":"SUM(Y62:Y70)","v":0},null,{"$f":"SUM(AA62:AA70)","v":0},null,{"$f":"SUM(AC62:AC70)","v":0},null,{"$f":"SUM(AE62:AE70)","v":0},null,{"$f":"SUM(AG62:AG70)","v":0},null,{"$f":"SUM(AI62:AI70)","v":0},null,{"$f":"SUM(AK62:AK70)","v":0},{"$f":"SUM(F71,H71,J71,L71,N71,P71,R71,T71,V71,X71,Z71,AB71,AD71,AF71,AH71,AJ71)","v":0},20,{"$f":"SUM(G71,I71,K71,M71,O71,Q71,S71,U71,W71,Y71,AA71,AC71,AE71,AG71,AI71,AK71)","v":0}]
[]
["専門教育科目合計（単位数とGP）",null,null,null,null,{"$f":"SUM(F15,F33,F38,F48,F60,F71)","v":0},{"$f":"SUM(G15,G33,G38,G48,G60,G71)","v":0},{"$f":"SUM(H15,H33,H38,H48,H60,H71)","v":0},{"$f":"SUM(I15,I33,I38,I48,I60,I71)","v":0},{"$f":"SUM(J15,J33,J38,J48,J60,J71)","v":0},0,0,0,0,0,0,0,0,0,0,0,0,0,0,0,0,0,0,0,0,0,0,0,0,0,0,0,{"$f":"SUM(F73,H73,J73,L73,N73,P73,R73,T73,V73,X73,Z73,AB73,AD73,AF73,AH73,AJ73)","v":0},92,{"$f":"SUM(G73,I73,K73,M73,O73,Q73,S73,U73,W73,Y73,AA73,AC73,AE73,AG73,AI73,AK73)","v":0}]
["(共通＋専門)教育科目合計（単位数とGP）",null,null,null,null,{"$f":"'単位修得状況確認表（共通教育科目，外国人留学生）'!H25+F73","v":0},{"$f":"'単位修得状況確認表（共通教育科目，外国人留学生）'!I25+G73","v":0},{"$f":"'単位修得状況確認表（共通教育科目，外国人留学生）'!J25+H73","v":0},{"$f":"'単位修得状況確認表（共通教育科目，外国人留学生）'!K25+I73","v":0},{"$f":"'単位修得状況確認表（共通教育科目，外国人留学生）'!L25+J73","v":0},{"$f":"'単位修得状況確認表（共通教育科目，外国人留学生）'!M25+K73","v":0},{"$f":"'単位修得状況確認表（共通教育科目，外国人留学生）'!N25+L73","v":0},{"$f":"'単位修得状況確認表（共通教育科目，外国人留学生）'!O25+M73","v":0},{"$f":"'単位修得状況確認表（共通教育科目，外国人留学生）'!P25+N73","v":0},{"$f":"'単位修得状況確認表（共通教育科目，外国人留学生）'!Q25+O73","v":0},{"$f":"'単位修得状況確認表（共通教育科目，外国人留学生）'!R25+P73","v":0},{"$f":"'単位修得状況確認表（共通教育科目，外国人留学生）'!S25+Q73","v":0},{"$f":"'単位修得状況確認表（共通教育科目，外国人留学生）'!T25+R73","v":0},{"$f":"'単位修得状況確認表（共通教育科目，外国人留学生）'!U25+S73","v":0},{"$f":"'単位修得状況確認表（共通教育科目，外国人留学生）'!V25+T73","v":0},{"$f":"'単位修得状況確認表（共通教育科目，外国人留学生）'!W25+U73","v":0},{"$f":"'単位修得状況確認表（共通教育科目，外国人留学生）'!X25+V73","v":0},{"$f":"'単位修得状況確認表（共通教育科目，外国人留学生）'!Y25+W73","v":0},{"$f":"'単位修得状況確認表（共通教育科目，外国人留学生）'!Z25+X73","v":0},{"$f":"'単位修得状況確認表（共通教育科目，外国人留学生）'!AA25+Y73","v":0},{"$f":"'単位修得状況確認表（共通教育科目，外国人留学生）'!AB25+Z73","v":0},{"$f":"'単位修得状況確認表（共通教育科目，外国人留学生）'!AC25+AA73","v":0},{"$f":"'単位修得状況確認表（共通教育科目，外国人留学生）'!AD25+AB73","v":0},{"$f":"'単位修得状況確認表（共通教育科目，外国人留学生）'!AE25+AC73","v":0},{"$f":"'単位修得状況確認表（共通教育科目，外国人留学生）'!AF25+AD73","v":0},{"$f":"'単位修得状況確認表（共通教育科目，外国人留学生）'!AG25+AE73","v":0},{"$f":"'単位修得状況確認表（共通教育科目，外国人留学生）'!AH25+AF73","v":0},{"$f":"'単位修得状況確認表（共通教育科目，外国人留学生）'!AI25+AG73","v":0},{"$f":"'単位修得状況確認表（共通教育科目，外国人留学生）'!AJ25+AH73","v":0},{"$f":"'単位修得状況確認表（共通教育科目，外国人留学生）'!AK25+AI73","v":0},{"$f":"'単位修得状況確認表（共通教育科目，外国人留学生）'!AL25+AJ73","v":0},{"$f":"'単位修得状況確認表（共通教育科目，外国人留学生）'!AM25+AK73","v":0},{"$f":"SUM(F74,H74,J74,L74,N74,P74,R74,T74,V74,X74,Z74,AB74,AD74,AF74,AH74,AJ74)","v":0},124,{"$f":"SUM(G74,I74,K74,M74,O74,Q74,S74,U74,W74,Y74,AA74,AC74,AE74,AG74,AI74,AK74)","v":0}]
["※","「期を増やす」欄により学年を４年間増やすことが可。",null,null,null,null,null,null,null,null,null,null,null,null,null,null,null,null,null,null,null,null,null,null,null,null,null,null,null,null,null,null,null,null,null,null,null,"累積GPA",null,{"$f":"IF(AL74-AL77>0,AN74/(AL74-AL77-'単位修得状況確認表（共通教育科目，外国人留学生）'!AN28+AL78+'単位修得状況確認表（共通教育科目，外国人留学生）'!AN29-AL79-'単位修得状況確認表（共通教育科目，外国人留学生）'!AN30),\"\")","v":""}]
[]
["①【専門教育科目】評価Pの単位数",null,null,null,null,null,null,null,null,null,null,null,null,null,null,null,null,null,null,null,null,null,null,null,null,null,null,null,null,null,null,null,null,null,null,null,null,{"$f":"SUM(F77:AK77)","v":0}]
["②【専門教育科目】不合格（評価F）の単位数",null,null,null,null,null,null,null,null,null,null,null,null,null,null,null,null,null,null,null,null,null,null,null,null,null,null,null,null,null,null,null,null,null,null,null,null,{"$f":"SUM(F78:AK78)","v":0}]
["③【専門教育科目】評価F科目の再履修での修得単位数",null,null,null,null,null,null,null,null,null,null,null,null,null,null,null,null,null,null,null,null,null,null,null,null,null,null,null,null,null,null,null,null,null,null,null,null,{"$f":"SUM(F79:AK79)","v":0}]

{"sheet":"累積グラフ","index":5,"n_rows":217,"n_cols":8,"rows_kept":217,"cut":false,"hidden":false,"merged":[[65,2,65,3],[3,6,3,7],[3,2,3,3],[3,4,3,5],[34,2,34,3],[34,4,34,5]]}
[]
[null,"共通教育科目（必修科目）"]
[]
[null,null,"初年次教育科目",null,"ｸﾞﾛｰﾊﾞﾙ教育科目",null,"日本語・日本事情科目"]
[null,null,"取得単位数","累積取得単位数","取得単位数","累積取得単位数","取得単位数","累積取得単位数"]
[null,"1年前期終了時",{"$f":"SUM('単位修得状況確認表（共通教育科目，外国人留学生）'!H7:H12)","v":0},{"$f":"SUM(C$6:C6)","v":0},{"$f":"SUM('単位修得状況確認表（共通教育科目，外国人留学生）'!H13:H14)","v":0},{"$f":"SUM(E$6:E6)","v":0},{"$f":"SUM('単位修得状況確認表（共通教育科目，外国人留学生）'!H15:H16)","v":0},{"$f":"SUM(G$6:G6)","v":0}]
[null,"1年後期終了時",{"$f":"SUM('単位修得状況確認表（共通教育科目，外国人留学生）'!J7:J12)","v":0},{"$f":"SUM(C$6:C7)","v":0},{"$f":"SUM('単位修得状況確認表（共通教育科目，外国人留学生）'!J13:J14)","v":0},{"$f":"SUM(E$6:E7)","v":0},{"$f":"SUM('単位修得状況確認表（共通教育科目，外国人留学生）'!J15:J16)","v":0},{"$f":"SUM(G$6:G7)","v":0}]
[null,"2年前期終了時",{"$f":"SUM('単位修得状況確認表（共通教育科目，外国人留学生）'!L7:L12)","v":0},{"$f":"SUM(C$6:C8)","v":0},{"$f":"SUM('単位修得状況確認表（共通教育科目，外国人留学生）'!L13:L14)","v":0},{"$f":"SUM(E$6:E8)","v":0},{"$f":"SUM('単位修得状況確認表（共通教育科目，外国人留学生）'!L15:L16)","v":0},{"$f":"SUM(G$6:G8)","v":0}]
[null,"2年後期終了時",{"$f":"SUM('単位修得状況確認表（共通教育科目，外国人留学生）'!N7:N12)","v":0},{"$f":"SUM(C$6:C9)","v":0},{"$f":"SUM('単位修得状況確認表（共通教育科目，外国人留学生）'!N13:N14)","v":0},{"$f":"SUM(E$6:E9)","v":0},{"$f":"SUM('単位修得状況確認表（共通教育科目，外国人留学生）'!N15:N16)","v":0},{"$f":"SUM(G$6:G9)","v":0}]
[null,"3年前期終了時",{"$f":"SUM('単位修得状況確認表（共通教育科目，外国人留学生）'!P7:P12)","v":0},{"$f":"SUM(C$6:C10)","v":0},{"$f":"SUM('単位修得状況確認表（共通教育科目，外国人留学生）'!P13:P14)","v":0},{"$f":"SUM(E$6:E10)","v":0},{"$f":"SUM('単位修得状況確認表（共通教育科目，外国人留学生）'!P15:P16)","v":0},{"$f":"SUM(G$6:G10)","v":0}]
[null,"3年後期終了時",{"$f":"SUM('単位修得状況確認表（共通教育科目，外国人留学生）'!R7:R12)","v":0},{"$f":"SUM(C$6:C11)","v":0},{"$f":"SUM('単位修得状況確認表（共通教育科目，外国人留学生）'!R13:R14)","v":0},{"$f":"SUM(E$6:E11)","v":0},{"$f":"SUM('単位修得状況確認表（共通教育科目，外国人留学生）'!R15:R16)","v":0},{"$f":"SUM(G$6:G11)","v":0}]
[null,"4年前期終了時",{"$f":"SUM('単位修得状況確認表（共通教育科目，外国人留学生）'!T7:T12)","v":0},{"$f":"SUM(C$6:C12)","v":0},{"$f":"SUM('単位修得状況確認表（共通教育科目，外国人留学生）'!T13:T14)","v":0},{"$f":"SUM(E$6:E12)","v":0},{"$f":"SUM('単位修得状況確認表（共通教育科目，外国人留学生）'!T15:T16)","v":0},{"$f":"SUM(G$6:G12)","v":0}]
[null,"4年後期終了時",{"$f":"SUM('単位修得状況確認表（共通教育科目，外国人留学生）'!V7:V12)","v":0},{"$f":"SUM(C$6:C13)","v":0},{"$f":"SUM('単位修得状況確認表（共通教育科目，外国人留学生）'!V13:V14)","v":0},{"$f":"SUM(E$6:E13)","v":0},{"$f":"SUM('単位修得状況確認表（共通教育科目，外国人留学生）'!V15:V16)","v":0},{"$f":"SUM(G$6:G13)","v":0}]
[]
[]
[]
[]
[]
[]
[]
[]
[]
[]
[]
[]
[]
[]
[]
[]
[]
[]
[]
[null,"共通教育科目（選択必修科目）"]
[]
[null,null,"教養教育科目",null,"教養活用科目"]
[null,null,"取得単位数","累積取得単位数","取得単位数","累積取得単位数"]
[null,"1年前期終了時",{"$f":"SUM('単位修得状況確認表（共通教育科目，外国人留学生）'!H18:H21)","v":0},{"$f":"SUM(C$37:C37)","v":0},{"$f":"SUM('単位修得状況確認表（共通教育科目，外国人留学生）'!H22:H23)","v":0},{"$f":"SUM(E$37:E37)","v":0}]
[null,"1年後期終了時",{"$f":"SUM('単位修得状況確認表（共通教育科目，外国人留学生）'!J18:J21)","v":0},{"$f":"SUM(C$37:C38)","v":0},{"$f":"SUM('単位修得状況確認表（共通教育科目，外国人留学生）'!J22:J23)","v":0},{"$f":"SUM(E$37:E38)","v":0}]
[null,"2年前期終了時",{"$f":"SUM('単位修得状況確認表（共通教育科目，外国人留学生）'!L18:L21)","v":0},{"$f":"SUM(C$37:C39)","v":0},{"$f":"SUM('単位修得状況確認表（共通教育科目，外国人留学生）'!L22:L23)","v":0},{"$f":"SUM(E$37:E39)","v":0}]
[null,"2年後期終了時",{"$f":"SUM('単位修得状況確認表（共通教育科目，外国人留学生）'!N18:N21)","v":0},{"$f":"SUM(C$37:C40)","v":0},{"$f":"SUM('単位修得状況確認表（共通教育科目，外国人留学生）'!N22:N23)","v":0},{"$f":"SUM(E$37:E40)","v":0}]
[null,"3年前期終了時",{"$f":"SUM('単位修得状況確認表（共通教育科目，外国人留学生）'!P18:P21)","v":0},{"$f":"SUM(C$37:C41)","v":0},{"$f":"SUM('単位修得状況確認表（共通教育科目，外国人留学生）'!P22:P23)","v":0},{"$f":"SUM(E$37:E41)","v":0}]
[null,"3年後期終了時",{"$f":"SUM('単位修得状況確認表（共通教育科目，外国人留学生）'!R18:R21)","v":0},{"$f":"SUM(C$37:C42)","v":0},{"$f":"SUM('単位修得状況確認表（共通教育科目，外国人留学生）'!R22:R23)","v":0},{"$f":"SUM(E$37:E42)","v":0}]
[null,"4年前期終了時",{"$f":"SUM('単位修得状況確認表（共通教育科目，外国人留学生）'!T18:T21)","v":0},{"$f":"SUM(C$37:C43)","v":0},{"$f":"SUM('単位修得状況確認表（共通教育科目，外国人留学生）'!T22:T23)","v":0},{"$f":"SUM(E$37:E43)","v":0}]
[null,"4年後期終了時",{"$f":"SUM('単位修得状況確認表（共通教育科目，外国人留学生）'!V18:V21)","v":0},{"$f":"SUM(C$37:C44)","v":0},{"$f":"SUM('単位修得状況確認表（共通教育科目，外国人留学生）'!V22:V23)","v":0},{"$f":"SUM(E$37:E44)","v":0}]
[]
[]
[]
[]
[]
[]
[]
[]
[]
[]
[]
[]
[]
[]
[]
[]
[]
[]
[]
[null,"専門教育科目（基礎教育科目）"]
[]
[null,null,"必修科目"]
[null,null,"取得単位数","累積取得単位数"]
[null,"1年前期終了時",{"$f":"'単位修得状況確認表（専門教育科目）'!F15","v":0},{"$f":"SUM(C$68:C68)","v":0}]
[null,"1年後期終了時",{"$f":"'単位修得状況確認表（専門教育科目）'!H15","v":0},{"$f":"SUM(C$68:C69)","v":0}]
[null,"2年前期終了時",{"$f":"'単位修得状況確認表（専門教育科目）'!J15","v":0},{"$f":"SUM(C$68:C70)","v":0}]
[null,"2年後期終了時",{"$f":"'単位修得状況確認表（専門教育科目）'!L15","v":0},{"$f":"SUM(C$68:C71)","v":0}]
[null,"3年前期終了時",{"$f":"'単位修得状況確認表（専門教育科目）'!N15","v":0},{"$f":"SUM(C$68:C72)","v":0}]
[null,"3年後期終了時",{"$f":"'単位修得状況確認表（専門教育科目）'!P15","v":0},{"$f":"SUM(C$68:C73)","v":0}]
[null,"4年前期終了時",{"$f":"'単位修得状況確認表（専門教育科目）'!R15","v":0},{"$f":"SUM(C$68:C74)","v":0}]
[null,"4年後期終了時",{"$f":"'単位修得状況確認表（専門教育科目）'!T15","v":0},{"$f":"SUM(C$68:C75)","v":0}]
[]
[]
[]
[]
[]
[]
[null,"専門教育科目（工学基礎）"]
[]
[null,null,"取得単位数","累積取得単位数"]
[null,"1年前期終了時",{"$f":"'単位修得状況確認表（専門教育科目）'!F33","v":0},{"$f":"SUM(C$85:C85)","v":0}]
[null,"1年後期終了時",{"$f":"'単位修得状況確認表（専門教育科目）'!H33","v":0},{"$f":"SUM(C$85:C86)","v":0}]
[null,"2年前期終了時",{"$f":"'単位修得状況確認表（専門教育科目）'!J33","v":0},{"$f":"SUM(C$85:C87)","v":0}]
[null,"2年後期終了時",{"$f":"'単位修得状況確認表（専門教育科目）'!L33","v":0},{"$f":"SUM(C$85:C88)","v":0}]
[null,"3年前期終了時",{"$f":"'単位修得状況確認表（専門教育科目）'!N33","v":0},{"$f":"SUM(C$85:C89)","v":0}]
[null,"3年後期終了時",{"$f":"'単位修得状況確認表（専門教育科目）'!P33","v":0},{"$f":"SUM(C$85:C90)","v":0}]
[null,"4年前期終了時",{"$f":"'単位修得状況確認表（専門教育科目）'!R33","v":0},{"$f":"SUM(C$85:C91)","v":0}]
[null,"4年後期終了時",{"$f":"'単位修得状況確認表（専門教育科目）'!T33","v":0},{"$f":"SUM(C$85:C92)","v":0}]
[]
[]
[]
[]
[]
[]
[]
[null,"専門教育科目（化学工学基礎）"]
[]
[null,null,"取得単位数","累積取得単位数"]
[null,"1年前期終了時",{"$f":"'単位修得状況確認表（専門教育科目）'!F38","v":0},{"$f":"SUM(C$103:C103)","v":0}]
[null,"1年後期終了時",{"$f":"'単位修得状況確認表（専門教育科目）'!H38","v":0},{"$f":"SUM(C$103:C104)","v":0}]
[null,"2年前期終了時",{"$f":"'単位修得状況確認表（専門教育科目）'!J38","v":0},{"$f":"SUM(C$103:C105)","v":0}]
[null,"2年後期終了時",{"$f":"'単位修得状況確認表（専門教育科目）'!L38","v":0},{"$f":"SUM(C$103:C106)","v":0}]
[null,"3年前期終了時",{"$f":"'単位修得状況確認表（専門教育科目）'!N38","v":0},{"$f":"SUM(C$103:C107)","v":0}]
[null,"3年後期終了時",{"$f":"'単位修得状況確認表（専門教育科目）'!P38","v":0},{"$f":"SUM(C$103:C108)","v":0}]
[null,"4年前期終了時",{"$f":"'単位修得状況確認表（専門教育科目）'!R38","v":0},{"$f":"SUM(C$103:C109)","v":0}]
[null,"4年後期終了時",{"$f":"'単位修得状況確認表（専門教育科目）'!T38","v":0},{"$f":"SUM(C$103:C110)","v":0}]
[]
[]
[]
[]
[]
[]
[]
[null,"専門教育科目（専門基礎A）"]
[]
[null,null,"取得単位数","累積取得単位数"]
[null,"1年前期終了時",{"$f":"'単位修得状況確認表（専門教育科目）'!F48","v":0},{"$f":"SUM(C$121:C121)","v":0}]
[null,"1年後期終了時",{"$f":"'単位修得状況確認表（専門教育科目）'!H48","v":0},{"$f":"SUM(C$121:C122)","v":0}]
[null,"2年前期終了時",{"$f":"'単位修得状況確認表（専門教育科目）'!J48","v":0},{"$f":"SUM(C$121:C123)","v":0}]
[null,"2年後期終了時",{"$f":"'単位修得状況確認表（専門教育科目）'!L48","v":0},{"$f":"SUM(C$121:C124)","v":0}]
[null,"3年前期終了時",{"$f":"'単位修得状況確認表（専門教育科目）'!N48","v":0},{"$f":"SUM(C$121:C125)","v":0}]
[null,"3年後期終了時",{"$f":"'単位修得状況確認表（専門教育科目）'!P48","v":0},{"$f":"SUM(C$121:C126)","v":0}]
[null,"4年前期終了時",{"$f":"'単位修得状況確認表（専門教育科目）'!R48","v":0},{"$f":"SUM(C$121:C127)","v":0}]
[null,"4年後期終了時",{"$f":"'単位修得状況確認表（専門教育科目）'!T48","v":0},{"$f":"SUM(C$121:C128)","v":0}]
[]
[]
[]
[]
[]
[]
[]
[null,"専門教育科目（専門基礎B）"]
[]
[null,null,"取得単位数","累積取得単位数"]
[null,"1年前期終了時",{"$f":"'単位修得状況確認表（専門教育科目）'!F60","v":0},{"$f":"SUM(C$139:C139)","v":0}]
[null,"1年後期終了時",{"$f":"'単位修得状況確認表（専門教育科目）'!H60","v":0},{"$f":"SUM(C$139:C140)","v":0}]
[null,"2年前期終了時",{"$f":"'単位修得状況確認表（専門教育科目）'!J60","v":0},{"$f":"SUM(C$139:C141)","v":0}]
[null,"2年後期終了時",{"$f":"'単位修得状況確認表（専門教育科目）'!L60","v":0},{"$f":"SUM(C$139:C142)","v":0}]
[null,"3年前期終了時",{"$f":"'単位修得状況確認表（専門教育科目）'!N60","v":0},{"$f":"SUM(C$139:C143)","v":0}]
[null,"3年後期終了時",{"$f":"'単位修得状況確認表（専門教育科目）'!P60","v":0},{"$f":"SUM(C$139:C144)","v":0}]
[null,"4年前期終了時",{"$f":"'単位修得状況確認表（専門教育科目）'!R60","v":0},{"$f":"SUM(C$139:C145)","v":0}]
[null,"4年後期終了時",{"$f":"'単位修得状況確認表（専門教育科目）'!T60","v":0},{"$f":"SUM(C$139:C146)","v":0}]
[]
[]
[]
[]
[]
[]
[]
[null,"専門教育科目（専門）"]
[]
[null,null,"取得単位数","累積取得単位数"]
[null,"1年前期終了時",{"$f":"'単位修得状況確認表（専門教育科目）'!F71","v":0},{"$f":"SUM(C$157:C157)","v":0}]
[null,"1年後期終了時",{"$f":"'単位修得状況確認表（専門教育科目）'!H71","v":0},{"$f":"SUM(C$157:C158)","v":0}]
[null,"2年前期終了時",{"$f":"'単位修得状況確認表（専門教育科目）'!J71","v":0},{"$f":"SUM(C$157:C159)","v":0}]
[null,"2年後期終了時",{"$f":"'単位修得状況確認表（専門教育科目）'!L71","v":0},{"$f":"SUM(C$157:C160)","v":0}]
[null,"3年前期終了時",{"$f":"'単位修得状況確認表（専門教育科目）'!N71","v":0},{"$f":"SUM(C$157:C161)","v":0}]
[null,"3年後期終了時",{"$f":"'単位修得状況確認表（専門教育科目）'!P71","v":0},{"$f":"SUM(C$157:C162)","v":0}]
[null,"4年前期終了時",{"$f":"'単位修得状況確認表（専門教育科目）'!R71","v":0},{"$f":"SUM(C$157:C163)","v":0}]
[null,"4年後期終了時",{"$f":"'単位修得状況確認表（専門教育科目）'!T71","v":0},{"$f":"SUM(C$157:C164)","v":0}]
[]
[]
[]
[]
[]
[]
[]
[]
[]
[]
[null,"累積単位数"]
[]
[null,null,"取得単位数","累積取得単位数"]
[null,"1年前期終了時",{"$f":"SUM(C6,E6,G6,C37,E37,C68,C85,C103,C121,C139,C157)","v":0},{"$f":"SUM(C$178:C178)","v":0}]
[null,"1年後期終了時",{"$f":"SUM(C7,E7,G7,C38,E38,C69,C86,C104,C122,C140,C158)","v":0},{"$f":"SUM(C$178:C179)","v":0}]
[null,"2年前期終了時",0,{"$f":"SUM(C$178:C180)","v":0}]
[null,"2年後期終了時",0,{"$f":"SUM(C$178:C181)","v":0}]
[null,"3年前期終了時",0,{"$f":"SUM(C$178:C182)","v":0}]
[null,"3年後期終了時",0,{"$f":"SUM(C$178:C183)","v":0}]
[null,"4年前期終了時",0,{"$f":"SUM(C$178:C184)","v":0}]
[null,"4年後期終了時",0,{"$f":"SUM(C$178:C185)","v":0}]
[]
[]
[]
[]
[]
[]
[]
[]
[]
[]
[]
[]
[]
[]
[]
[]
[]
[]
[]
[]
[]
[null,"GPA"]
[]
[null,null,"累積GP","累積GPA","GPA累積単位数","累積P","累積F"]
[null,"1年前期終了時",{"$f":"'単位修得状況確認表（共通教育科目，外国人留学生）'!I25+'単位修得状況確認表（専門教育科目）'!G73","v":0},{"$f":"IF(E210=0,\"\",C210/E210)","v":""},{"$f":"D178-F210+G210","v":0},{"$f":"'単位修得状況確認表（共通教育科目，外国人留学生）'!H28+'単位修得状況確認表（専門教育科目）'!F77","v":0},{"$f":"'単位修得状況確認表（共通教育科目，外国人留学生）'!H29+'単位修得状況確認表（専門教育科目）'!F78-'単位修得状況確認表（共通教育科目，外国人留学生）'!H30-'単位修得状況確認表（専門教育科目）'!F79","v":0}]
[null,"1年後期終了時",{"$f":"C210+'単位修得状況確認表（共通教育科目，外国人留学生）'!K25+'単位修得状況確認表（専門教育科目）'!I73","v":0},"",{"$f":"D179-F211+G211","v":0},{"$f":"F210+'単位修得状況確認表（共通教育科目，外国人留学生）'!J28+'単位修得状況確認表（専門教育科目）'!H77","v":0},{"$f":"G210+'単位修得状況確認表（共通教育科目，外国人留学生）'!J29+'単位修得状況確認表（専門教育科目）'!H78-'単位修得状況確認表（共通教育科目，外国人留学生）'!J30-'単位修得状況確認表（専門教育科目）'!H79","v":0}]
[null,"2年前期終了時",{"$f":"C211+'単位修得状況確認表（共通教育科目，外国人留学生）'!M25+'単位修得状況確認表（専門教育科目）'!K73","v":0},"",{"$f":"D180-F212+G212","v":0},{"$f":"F211+'単位修得状況確認表（共通教育科目，外国人留学生）'!L28+'単位修得状況確認表（専門教育科目）'!J77","v":0},{"$f":"G211+'単位修得状況確認表（共通教育科目，外国人留学生）'!L29+'単位修得状況確認表（専門教育科目）'!J78-'単位修得状況確認表（共通教育科目，外国人留学生）'!L30-'単位修得状況確認表（専門教育科目）'!J79","v":0}]
[null,"2年後期終了時",{"$f":"C212+'単位修得状況確認表（共通教育科目，外国人留学生）'!O25+'単位修得状況確認表（専門教育科目）'!M73","v":0},"",0,{"$f":"F212+'単位修得状況確認表（共通教育科目，外国人留学生）'!N28+'単位修得状況確認表（専門教育科目）'!L77","v":0},{"$f":"G212+'単位修得状況確認表（共通教育科目，外国人留学生）'!N29+'単位修得状況確認表（専門教育科目）'!L78-'単位修得状況確認表（共通教育科目，外国人留学生）'!N30-'単位修得状況確認表（専門教育科目）'!L79","v":0}]
[null,"3年前期終了時",{"$f":"C213+'単位修得状況確認表（共通教育科目，外国人留学生）'!Q25+'単位修得状況確認表（専門教育科目）'!O73","v":0},"",0,{"$f":"F213+'単位修得状況確認表（共通教育科目，外国人留学生）'!P28+'単位修得状況確認表（専門教育科目）'!N77","v":0},{"$f":"G213+'単位修得状況確認表（共通教育科目，外国人留学生）'!P29+'単位修得状況確認表（専門教育科目）'!N78-'単位修得状況確認表（共通教育科目，外国人留学生）'!P30-'単位修得状況確認表（専門教育科目）'!N79","v":0}]
[null,"3年後期終了時",{"$f":"C214+'単位修得状況確認表（共通教育科目，外国人留学生）'!S25+'単位修得状況確認表（専門教育科目）'!Q73","v":0},"",0,{"$f":"F214+'単位修得状況確認表（共通教育科目，外国人留学生）'!R28+'単位修得状況確認表（専門教育科目）'!P77","v":0},{"$f":"G214+'単位修得状況確認表（共通教育科目，外国人留学生）'!R29+'単位修得状況確認表（専門教育科目）'!P78-'単位修得状況確認表（共通教育科目，外国人留学生）'!R30-'単位修得状況確認表（専門教育科目）'!P79","v":0}]
[null,"4年前期終了時",{"$f":"C215+'単位修得状況確認表（共通教育科目，外国人留学生）'!U25+'単位修得状況確認表（専門教育科目）'!S73","v":0},"",0,{"$f":"F215+'単位修得状況確認表（共通教育科目，外国人留学生）'!T28+'単位修得状況確認表（専門教育科目）'!R77","v":0},{"$f":"G215+'単位修得状況確認表（共通教育科目，外国人留学生）'!T29+'単位修得状況確認表（専門教育科目）'!R78-'単位修得状況確認表（共通教育科目，外国人留学生）'!T30-'単位修得状況確認表（専門教育科目）'!R79","v":0}]
[null,"4年後期終了時",{"$f":"C216+'単位修得状況確認表（共通教育科目，外国人留学生）'!W25+'単位修得状況確認表（専門教育科目）'!U73","v":0},"",0,{"$f":"F216+'単位修得状況確認表（共通教育科目，外国人留学生）'!V28+'単位修得状況確認表（専門教育科目）'!T77","v":0},{"$f":"G216+'単位修得状況確認表（共通教育科目，外国人留学生）'!V29+'単位修得状況確認表（専門教育科目）'!T78-'単位修得状況確認表（共通教育科目，外国人留学生）'!V30-'単位修得状況確認表（専門教育科目）'!T79","v":0}]